fUST/lending_fUST_20250827
["ID","MTS","AMOUNT","RATE_DAILY","PERIOD"]
[381578969,1756289447788,-742.5,0.00022639,2]
[381578971,1756289447797,-591.85,0.00022639,2]
[381578972,1756289447806,-480.0,0.00022639,2]
[381578974,1756289447816,-506.48102293,0.00022639,2]
[381578976,1756289447825,-480.0,0.00022639,2]
[381578978,1756289447835,-480.0,0.0002264,2]
[381578980,1756289447844,-821.76,0.0002264,2]
[381578982,1756289447853,-480.0,0.0002264,2]
[381578984,1756289447861,-480.0,0.0002264,2]
[381578986,1756289447871,-480.0,0.0002264,2]
[381578988,1756289447880,-480.0,0.0002264,2]
[381578990,1756289447889,-480.0,0.0002264,2]
[381578992,1756289447898,-480.0,0.0002264,2]
[381578994,1756289447907,-480.0,0.0002264,2]
[381578996,1756289447916,-480.0,0.0002264,2]
[381578998,1756289447929,-480.0,0.0002264,2]
[381579000,1756289447938,-480.0,0.0002264,2]
[381579002,1756289447947,-480.0,0.0002264,2]
[381579004,1756289447956,-480.0,0.0002264,2]
[381579006,1756289447966,-480.0,0.0002264,2]
[381579008,1756289447975,-480.0,0.0002264,2]
[381579010,1756289447985,-480.0,0.0002264,2]
[381579012,1756289447995,-678.6,0.0002264,2]
[381579014,1756289448005,-983.64,0.0002264,2]
[381579016,1756289448014,-877.75,0.0002264,2]
[381579018,1756289448023,-480.0,0.0002264,2]
[381579020,1756289448033,-480.0,0.0002264,2]
[381579022,1756289448043,-480.0,0.0002264,2]
[381579024,1756289448052,-480.0,0.0002264,2]
[381579026,1756289448061,-480.0,0.0002264,2]
[381579028,1756289448072,-480.0,0.0002264,2]
[381579030,1756289448082,-480.0,0.0002264,2]
[381579032,1756289448091,-480.0,0.0002264,2]
[381579034,1756289448100,-480.0,0.0002264,2]
[381579036,1756289448110,-480.0,0.0002264,2]
[381579038,1756289448120,-480.0,0.0002264,2]
[381579040,1756289448129,-569.38,0.0002264,2]
[381579042,1756289448138,-480.0,0.0002264,2]
[381579044,1756289448149,-481.43,0.0002264,2]
[381579046,1756289448157,-480.0,0.0002264,2]
[381579048,1756289448166,-480.0,0.0002264,2]
[381579050,1756289448175,-480.0,0.0002264,2]
[381579052,1756289448185,-540.61,0.0002264,2]
[381579054,1756289448194,-480.0,0.0002264,2]
[381579056,1756289448203,-480.0,0.0002264,2]
[381579057,1756289448212,-480.0,0.0002264,2]
[381579059,1756289448221,-480.0,0.0002264,2]
[381579061,1756289448231,-480.0,0.0002264,2]
[381579064,1756289448242,-480.0,0.0002264,2]
[381579065,1756289448252,-480.0,0.0002264,2]
[381579067,1756289448262,-480.0,0.0002264,2]
[381579069,1756289448272,-480.0,0.0002264,2]
[381579071,1756289448281,-824.02,0.0002264,2]
[381579073,1756289448291,-543.91,0.0002264,2]
[381579075,1756289448301,-379.77178288,0.0002264,2]
[381579077,1756289448310,-480.0,0.0002264,2]
[381579079,1756289448320,-480.0,0.0002264,2]
[381579081,1756289448330,-480.0,0.0002264,2]
[381579083,1756289448339,-480.0,0.0002264,2]
[381579085,1756289448348,-480.0,0.0002264,2]
[381579087,1756289448358,-480.0,0.0002264,2]
[381579089,1756289448367,-632.67,0.0002264,2]
[381579090,1756289448377,-480.0,0.0002264,2]
[381579092,1756289448387,-259.54167396,0.0002264,2]
[381579094,1756289448396,-480.0,0.0002264,2]
[381579096,1756289448406,-480.0,0.0002264,2]
[381579098,1756289448416,-480.0,0.0002264,2]
[381579100,1756289448426,-480.0,0.0002264,2]
[381579101,1756289448435,-480.0,0.0002264,2]
[381579102,1756289448444,-480.0,0.0002264,2]
[381579103,1756289448453,-480.0,0.0002264,2]
[381579104,1756289448463,-641.67,0.0002264,2]
[381579105,1756289448472,-555.18,0.00022641,2]
[381579106,1756289448482,-480.0,0.00022641,2]
[381579107,1756289448495,-480.0,0.00022641,2]
[381579108,1756289448504,-1798.27,0.00022641,2]
[381579109,1756289448513,-919.9,0.00022642,2]
[381579110,1756289448523,-480.0,0.00022642,2]
[381579111,1756289448532,-1565.55,0.00022642,2]
[381579113,1756289448541,-1487.63,0.00022642,2]
[381579115,1756289448551,-3564.79,0.00022642,2]
[381579117,1756289448561,-1678.79,0.00022642,2]
[381579119,1756289448571,-480.0,0.00022642,2]
[381579121,1756289448581,-677.24,0.00022642,2]
[381579123,1756289448591,-3001.08,0.00022642,2]
[381579125,1756289448601,-2123.55,0.00022642,2]
[381579127,1756289448611,-570.64,0.00022643,2]
[381579129,1756289448620,-480.0,0.00022643,2]
[381579131,1756289448630,-480.0,0.00022643,2]
[381579133,1756289448640,-480.0,0.00022643,2]
[381579135,1756289448649,-480.0,0.00022643,2]
[381579137,1756289448659,-699.87,0.00022643,2]
[381579139,1756289448669,-589.43,0.00022643,2]
[381579141,1756289448679,-480.0,0.00022643,2]
[381579143,1756289448689,-480.0,0.00022643,2]
[381579145,1756289448698,-605.42551479,0.00022643,2]
[381579147,1756289448708,-480.0,0.00022643,2]
[381579149,1756289448718,-480.0,0.00022643,2]
[381579151,1756289448728,-480.0,0.00022643,2]
[381579153,1756289448738,-480.0,0.00022643,2]
[381579156,1756289448748,-480.0,0.00022643,2]
[381579158,1756289448758,-480.0,0.00022643,2]
[381579159,1756289448768,-480.0,0.00022643,2]
[381579162,1756289448778,-480.0,0.00022643,2]
[381579164,1756289448789,-1296.08,0.00022643,2]
[381579166,1756289448799,-480.0,0.00022643,2]
[381579168,1756289448810,-998.74,0.00022643,2]
[381579170,1756289448819,-480.0,0.00022643,2]
[381579172,1756289448829,-480.0,0.00022643,2]
[381579174,1756289448839,-480.0,0.00022643,2]
[381579176,1756289448848,-480.0,0.00022643,2]
[381579178,1756289448858,-1110.68,0.00022643,2]
[381579180,1756289448868,-480.0,0.00022643,2]
[381579182,1756289448878,-480.0,0.00022643,2]
[381579184,1756289448888,-480.0,0.00022643,2]
[381579186,1756289448897,-660.23,0.00022643,2]
[381579188,1756289448907,-480.0,0.00022643,2]
[381579190,1756289448917,-480.0,0.00022643,2]
[381579192,1756289448927,-480.0,0.00022643,2]
[381579194,1756289448937,-480.0,0.00022643,2]
[381579197,1756289448949,-480.0,0.00022643,2]
[381579199,1756289448959,-760.63,0.00022643,2]
[381579201,1756289448969,-524.94,0.00022643,2]
[381579203,1756289448979,-480.0,0.00022643,2]
[381579205,1756289448988,-581.06,0.00022643,2]
[381579207,1756289448998,-703.2,0.00022643,2]
[381579209,1756289449010,-541.56,0.00022643,2]
[381579210,1756289449020,-262.70740633,0.00022643,2]
[381579212,1756289449029,-3842.02,0.00022643,2]
[381579215,1756289449040,-480.0,0.00022643,2]
[381579217,1756289449049,-506.07,0.00022643,2]
[381579219,1756289449059,-480.0,0.00022643,2]
[381579221,1756289449075,-855.47,0.00022643,2]
[381579223,1756289449085,-552.43,0.00022643,2]
[381579225,1756289449095,-480.0,0.00022643,2]
[381579227,1756289449106,-676.34,0.00022643,2]
[381579229,1756289449118,-997.67,0.00022643,2]
[381579231,1756289449128,-500.0,0.00022643,2]
[381579233,1756289449138,-480.0,0.00022643,2]
[381579235,1756289449149,-480.0,0.00022643,2]
[381579237,1756289449159,-1905.17,0.00022643,2]
[381579239,1756289449168,-732.81,0.00022643,2]
[381579241,1756289449178,-480.0,0.00022643,2]
[381579243,1756289449187,-522.71,0.00022643,2]
[381579245,1756289449198,-485.54,0.00022643,2]
[381579247,1756289449208,-1210.7,0.00022643,2]
[381579249,1756289449219,-616.37,0.00022643,2]
[381579251,1756289449229,-487.65,0.00022643,2]
[381579253,1756289449239,-480.0,0.00022644,2]
[381579255,1756289449249,-969.77,0.00022644,2]
[381579257,1756289449258,-480.0,0.00022644,2]
[381579259,1756289449268,-480.0,0.00022644,2]
[381579261,1756289449278,-480.0,0.00022644,2]
[381579263,1756289449287,-480.0,0.00022644,2]
[381579265,1756289449298,-531.26,0.00022644,2]
[381579267,1756289449309,-480.0,0.00022644,2]
[381579269,1756289449319,-480.0,0.00022644,2]
[381579272,1756289449329,-480.0,0.00022644,2]
[381579274,1756289449339,-576.98,0.00022644,2]
[381579276,1756289449349,-609.12,0.00022644,2]
[381579278,1756289449359,-480.0,0.00022644,2]
[381579280,1756289449369,-480.0,0.00022644,2]
[381579282,1756289449379,-480.0,0.00022644,2]
[381579284,1756289449389,-480.0,0.00022644,2]
[381579286,1756289449399,-480.0,0.00022644,2]
[381579288,1756289449409,-480.0,0.00022644,2]
[381579290,1756289449418,-480.0,0.00022644,2]
[381579292,1756289449428,-480.0,0.00022644,2]
[381579294,1756289449438,-480.0,0.00022644,2]
[381579296,1756289449448,-480.0,0.00022644,2]
[381579298,1756289449458,-480.0,0.00022644,2]
[381579300,1756289449467,-615.06,0.00022644,2]
[381579302,1756289449477,-480.0,0.00022644,2]
[381579304,1756289449487,-811.56,0.00022644,2]
[381579306,1756289449497,-480.0,0.00022644,2]
[381579308,1756289449506,-480.0,0.00022644,2]
[381579310,1756289449516,-739.22,0.00022644,2]
[381579312,1756289449525,-480.0,0.00022644,2]
[381579314,1756289449536,-480.0,0.00022644,2]
[381579316,1756289449546,-480.0,0.00022644,2]
[381579318,1756289449556,-480.0,0.00022644,2]
[381579320,1756289449565,-480.0,0.00022644,2]
[381579322,1756289449575,-480.0,0.00022644,2]
[381579325,1756289449585,-480.0,0.00022644,2]
[381579327,1756289449595,-773.72,0.00022644,2]
[381579329,1756289449605,-480.0,0.00022644,2]
[381579331,1756289449614,-470.18249791,0.00022644,2]
[381579333,1756289449623,-480.0,0.00022644,2]
[381579335,1756289449633,-480.0,0.00022644,2]
[381579337,1756289449643,-480.0,0.00022644,2]
[381579339,1756289449652,-480.0,0.00022644,2]
[381579341,1756289449661,-480.0,0.00022644,2]
[381579343,1756289449671,-519.3,0.00022644,2]
[381579345,1756289449680,-480.0,0.00022644,2]
[381579347,1756289449690,-480.0,0.00022644,2]
[381579349,1756289449700,-480.0,0.00022644,2]
[381579351,1756289449710,-480.0,0.00022644,2]
[381579353,1756289449720,-480.0,0.00022644,2]
[381579355,1756289449730,-480.0,0.00022644,2]
[381579357,1756289449739,-569.32,0.00022644,2]
[381579359,1756289449749,-480.0,0.00022644,2]
[381579361,1756289449760,-480.0,0.00022644,2]
[381579363,1756289449770,-480.0,0.00022644,2]
[381579365,1756289449780,-480.0,0.00022644,2]
[381579367,1756289449789,-480.0,0.00022644,2]
[381579369,1756289449799,-480.0,0.00022644,2]
[381579372,1756289449810,-480.0,0.00022644,2]
[381579374,1756289449819,-480.0,0.00022644,2]
[381579376,1756289449829,-480.0,0.00022644,2]
[381579378,1756289449839,-480.0,0.00022644,2]
[381579380,1756289449848,-480.0,0.00022644,2]
[381579382,1756289449858,-480.0,0.00022644,2]
[381579384,1756289449867,-248.01080789,0.00022644,2]
[381579386,1756289449877,-521.63,0.00022644,2]
[381579388,1756289449887,-349.26413258,0.00022644,2]
[381579390,1756289449897,-480.0,0.00022644,2]
[381579392,1756289449906,-575.26,0.00022644,2]
[381579394,1756289449915,-480.0,0.00022644,2]
[381579396,1756289449925,-480.0,0.00022644,2]
[381579398,1756289449936,-480.0,0.00022644,2]
[381579400,1756289449947,-778.94,0.00022644,2]
[381579402,1756289449957,-873.99,0.00022644,2]
[381579404,1756289449967,-837.99,0.00022644,2]
[381579406,1756289449976,-480.0,0.00022644,2]
[381579408,1756289449987,-480.0,0.00022644,2]
[381579410,1756289449997,-480.0,0.00022644,2]
[381579412,1756289450007,-494.87,0.00022644,2]
[381579414,1756289450017,-678.91,0.00022644,2]
[381579416,1756289450027,-480.0,0.00022644,2]
[381579418,1756289450037,-600.0,0.00022644,2]
[381579420,1756289450047,-480.0,0.00022644,2]
[381579422,1756289450057,-508.08,0.00022644,2]
[381579424,1756289450068,-480.0,0.00022644,2]
[381579426,1756289450081,-484.67,0.00022644,2]
[381579428,1756289450091,-480.0,0.00022644,2]
[381579431,1756289450102,-425.88897949,0.00022644,2]
[381579433,1756289450112,-480.0,0.00022644,2]
[381579435,1756289450124,-480.0,0.00022644,2]
[381579437,1756289450136,-539.91,0.00022644,2]
[381579439,1756289450146,-480.0,0.00022644,2]
[381579441,1756289450160,-480.0,0.00022644,2]
[381579443,1756289450170,-480.0,0.00022644,2]
[381579445,1756289450180,-480.0,0.00022644,2]
[381579447,1756289450190,-613.6,0.00022644,2]
[381579450,1756289450200,-480.0,0.00022644,2]
[381579451,1756289450211,-925.94,0.00022644,2]
[381579453,1756289450221,-533.76,0.00022644,2]
[381579456,1756289450231,-537.77,0.00022644,2]
[381579458,1756289450241,-562.98,0.00022644,2]
[381579460,1756289450252,-480.0,0.00022644,2]
[381579462,1756289450262,-480.0,0.00022644,2]
[381579464,1756289450272,-480.0,0.00022644,2]
[381579466,1756289450282,-536.26,0.00022644,2]
[381579468,1756289450292,-480.0,0.00022644,2]
[381579470,1756289450303,-480.0,0.00022644,2]
[381579472,1756289450313,-480.0,0.00022644,2]
[381579474,1756289450324,-480.0,0.00022644,2]
[381579477,1756289450334,-480.0,0.00022644,2]
[381579479,1756289450344,-480.0,0.00022644,2]
[381579481,1756289450354,-480.0,0.00022644,2]
[381579483,1756289450364,-480.0,0.00022644,2]
[381579485,1756289450374,-480.0,0.00022644,2]
[381579487,1756289450385,-480.0,0.00022644,2]
[381579489,1756289450395,-592.44,0.00022644,2]
[381579491,1756289450405,-592.79,0.00022644,2]
[381579493,1756289450415,-575.25,0.00022644,2]
[381579495,1756289450426,-482.09984902,0.00022644,2]
[381579497,1756289450436,-582.79,0.00022644,2]
[381579499,1756289450446,-480.0,0.00022644,2]
[381579501,1756289450456,-480.0,0.00022644,2]
[381579503,1756289450466,-594.5,0.00022644,2]
[381579505,1756289450476,-480.0,0.00022644,2]
[381579507,1756289450486,-602.33,0.00022644,2]
[381579509,1756289450496,-3962.94514458,0.00022659,2]
[381579511,1756289450506,-1557.24,0.00022672,2]
[381579513,1756289450516,-500.0,0.00022673,2]
[381579516,1756289450528,-500.0,0.00022673,2]
[381579518,1756289450538,-500.0,0.00022673,2]
[381579520,1756289450548,-500.0,0.00022673,2]
[381579522,1756289450558,-529.88765004,0.00022673,2]
[381579524,1756289450568,-501.54918979,0.00022673,2]
[381579526,1756289450577,-500.0,0.00022673,2]
[381579528,1756289450587,-500.0,0.00022673,2]
[381579530,1756289450597,-500.0,0.00022673,2]
[381579532,1756289450607,-500.0,0.00022673,2]
[381579534,1756289450618,-500.0,0.00022673,2]
[381579536,1756289450628,-505.76236737,0.00022673,2]
[381579538,1756289450638,-500.0,0.00022673,2]
[381579540,1756289450648,-500.0,0.00022673,2]
[381579542,1756289450658,-500.0,0.00022673,2]
[381579544,1756289450667,-500.0,0.00022673,2]
[381579547,1756289450677,-258.92923988,0.00022673,2]
[381579549,1756289450688,-500.0,0.00022673,2]
[381579551,1756289450698,-502.46213118,0.00022673,2]
[381579553,1756289450708,-500.0,0.00022673,2]
[381579555,1756289450720,-197.38868026,0.00022673,2]
[381579557,1756289450730,-8404.79,0.00022673,2]
[381579559,1756289450740,-1727.42,0.00022673,2]
[381579561,1756289450750,-7813.59,0.00022673,2]
[381579563,1756289450761,-294490.22814427,0.00022685,2]
[381579586,1756289450964,-1000.0,0.00022742,2]
[381579588,1756289450975,-1557.24,0.00022812,2]
[381579590,1756289450985,-1343.80166407,0.00022815,2]
[381579592,1756289450995,-173.98865229,0.00022817,2]
[381579594,1756289451005,-1557.24,0.00022818,2]
[381579596,1756289451015,-1254.55664192,0.00022818,2]
[381579598,1756289451025,-500.0,0.00022819,2]
[381579600,1756289451036,-480.0,0.00022819,2]
[381579602,1756289451045,-480.0,0.00022819,2]
[381579604,1756289451055,-480.0,0.00022819,2]
[381579606,1756289451065,-480.0,0.00022819,2]
[381579608,1756289451082,-480.0,0.00022819,2]
[381579610,1756289451093,-480.0,0.00022819,2]
[381579611,1756289451103,-573.74,0.00022819,2]
[381579614,1756289451113,-480.0,0.00022819,2]
[381579615,1756289451124,-480.0,0.00022819,2]
[381579618,1756289451134,-782.38,0.00022819,2]
[381579620,1756289451145,-480.0,0.00022819,2]
[381579622,1756289451156,-480.0,0.00022819,2]
[381579624,1756289451166,-580.60455557,0.00022819,2]
[381579626,1756289451175,-480.0,0.00022819,2]
[381579628,1756289451185,-480.0,0.00022819,2]
[381579630,1756289451195,-480.0,0.00022819,2]
[381579632,1756289451205,-500.02,0.00022819,2]
[381579634,1756289451215,-480.0,0.00022819,2]
[381579636,1756289451226,-660.26,0.00022819,2]
[381579638,1756289451236,-819.02,0.00022819,2]
[381579640,1756289451247,-552.66,0.00022819,2]
[381579642,1756289451257,-813.43,0.00022819,2]
[381579643,1756289451266,-480.0,0.00022819,2]
[381579646,1756289451278,-530.66,0.00022819,2]
[381579648,1756289451288,-480.0,0.00022819,2]
[381579649,1756289451297,-480.0,0.00022819,2]
[381579651,1756289451309,-579.34,0.00022819,2]
[381579653,1756289451318,-480.0,0.00022819,2]
[381579655,1756289451328,-490.29,0.00022819,2]
[381579657,1756289451339,-573.74,0.00022819,2]
[381579659,1756289451348,-517.72,0.00022819,2]
[381579661,1756289451359,-480.0,0.00022819,2]
[381579664,1756289451370,-480.0,0.00022819,2]
[381579666,1756289451382,-480.0,0.00022819,2]
[381579668,1756289451392,-480.0,0.00022819,2]
[381579670,1756289451402,-480.0,0.00022819,2]
[381579672,1756289451412,-753.59,0.00022819,2]
[381579674,1756289451421,-480.0,0.00022819,2]
[381579676,1756289451432,-530.04,0.00022819,2]
[381579678,1756289451442,-480.0,0.00022819,2]
[381579680,1756289451452,-480.0,0.00022819,2]
[381579682,1756289451462,-480.0,0.00022819,2]
[381579684,1756289451473,-480.0,0.00022819,2]
[381579686,1756289451483,-629.53,0.00022819,2]
[381579688,1756289451493,-698.73,0.00022819,2]
[381579690,1756289451503,-480.0,0.00022819,2]
[381579692,1756289451513,-480.0,0.00022819,2]
[381579694,1756289451523,-1713.01,0.00022819,2]
[381579696,1756289451533,-1968.29,0.00022819,2]
[381579698,1756289451543,-480.0,0.00022819,2]
[381579700,1756289451558,-480.0,0.00022819,2]
[381579702,1756289451568,-480.0,0.00022819,2]
[381579704,1756289451578,-736.15,0.00022819,2]
[381579706,1756289451588,-480.0,0.00022819,2]
[381579708,1756289451599,-480.0,0.00022819,2]
[381579710,1756289451608,-480.0,0.00022819,2]
[381579712,1756289451619,-4264.07,0.00022819,2]
[381579714,1756289451630,-591.82,0.00022819,2]
[381579716,1756289451641,-576.58,0.00022819,2]
[381579719,1756289451653,-480.0,0.00022819,2]
[381579721,1756289451664,-778.47,0.00022819,2]
[381579722,1756289451676,-1557.24,0.00022835,2]
[381579724,1756289451687,-1557.24,0.00022841,2]
[381579727,1756289451697,-1557.24,0.00022841,2]
[381579729,1756289451707,-198.11906859,0.00022842,2]
[381579731,1756289451717,-480.0,0.00022842,2]
[381579733,1756289451728,-480.0,0.00022842,2]
[381579735,1756289451738,-577.79,0.00022842,2]
[381579737,1756289451748,-480.0,0.00022842,2]
[381579739,1756289451758,-480.0,0.00022842,2]
[381579741,1756289451768,-174.54860256,0.00022842,2]
[381579743,1756289451778,-480.0,0.00022842,2]
[381579745,1756289451788,-480.0,0.00022842,2]
[381579747,1756289451798,-480.0,0.00022842,2]
[381579749,1756289451808,-500.0,0.00022842,2]
[381579751,1756289451818,-480.0,0.00022842,2]
[381579753,1756289451827,-480.0,0.00022842,2]
[381579755,1756289451838,-480.0,0.00022842,2]
[381579756,1756289451848,-480.0,0.00022842,2]
[381579758,1756289451858,-480.0,0.00022842,2]
[381579761,1756289451869,-534.38,0.00022842,2]
[381579762,1756289451878,-480.0,0.00022842,2]
[381579765,1756289451889,-651.4,0.00022842,2]
[381579766,1756289451898,-480.0,0.00022842,2]
[381579769,1756289451909,-879.81,0.00022842,2]
[381579771,1756289451919,-481.81429699,0.00022842,2]
[381579773,1756289451928,-546.11,0.00022842,2]
[381579775,1756289451939,-480.0,0.00022842,2]
[381579777,1756289451949,-501.16,0.00022842,2]
[381579779,1756289451958,-480.0,0.00022842,2]
[381579781,1756289451968,-500.0,0.00022843,2]
[381579783,1756289451978,-500.0,0.00022843,2]
[381579784,1756289451989,-480.0,0.00022843,2]
[381579786,1756289451998,-2549.43,0.00022843,2]
[381579788,1756289452008,-84.98698555,0.00022843,2]
[381579816,1756289452274,-510.64301445,0.00022843,2]
[381579818,1756289452284,-500.0,0.00022844,2]
[381579819,1756289452295,-1557.24,0.00022844,2]
[381579822,1756289452306,-1557.24,0.00022844,2]
[381579824,1756289452316,-500.0,0.00022845,2]
[381579826,1756289452326,-1557.24,0.00022845,2]
[381579828,1756289452337,-1942.55347741,0.0002286,2]
[381579830,1756289452347,-500.0,0.00022873,2]
[381579831,1756289452357,-502.14782863,0.00022873,2]
[381579834,1756289452367,-500.0,0.00022873,2]
[381579836,1756289452377,-500.0,0.00022873,2]
[381579838,1756289452387,-2330.74,0.00022882,2]
[381579839,1756289452397,-480.0,0.00022882,2]
[381579842,1756289452407,-480.0,0.00022882,2]
[381579844,1756289452417,-480.0,0.00022882,2]
[381579846,1756289452427,-480.0,0.00022882,2]
[381579848,1756289452437,-603.02,0.00022882,2]
[381579850,1756289452447,-1386.14,0.00022882,2]
[381579852,1756289452457,-480.0,0.00022882,2]
[381579854,1756289452467,-791.53,0.00022882,2]
[381579856,1756289452478,-584.49,0.00022882,2]
[381579858,1756289452488,-527.14,0.00022882,2]
[381579860,1756289452499,-648.14,0.00022882,2]
[381579862,1756289452508,-614.39987278,0.00022882,2]
[381579864,1756289452518,-368.00354687,0.00022883,2]
[381579866,1756289452528,-480.0,0.00022883,2]
[381579868,1756289452538,-480.0,0.00022883,2]
[381579870,1756289452547,-983.33,0.00022883,2]
[381579872,1756289452558,-820.53,0.00022883,2]
[381579874,1756289452567,-480.0,0.00022883,2]
[381579876,1756289452576,-513.07,0.00022883,2]
[381579878,1756289452586,-480.0,0.00022883,2]
[381579880,1756289452595,-480.0,0.00022883,2]
[381579882,1756289452604,-502.54,0.00022883,2]
[381579884,1756289452615,-480.0,0.00022883,2]
[381579886,1756289452625,-480.0,0.00022883,2]
[381579888,1756289452634,-480.0,0.00022883,2]
[381579890,1756289452644,-480.0,0.00022883,2]
[381579892,1756289452654,-588.27,0.00022883,2]
[381579894,1756289452664,-480.0,0.00022883,2]
[381579896,1756289452673,-669.17,0.00022883,2]
[381579898,1756289452683,-480.0,0.00022883,2]
[381579900,1756289452692,-480.0,0.00022883,2]
[381579902,1756289452702,-480.0,0.00022883,2]
[381579904,1756289452711,-594.95,0.00022883,2]
[381579905,1756289452720,-480.0,0.00022883,2]
[381579906,1756289452729,-480.0,0.00022883,2]
[381579907,1756289452739,-710.48,0.00022883,2]
[381579908,1756289452748,-480.0,0.00022883,2]
[381579909,1756289452757,-480.0,0.00022883,2]
[381579910,1756289452766,-480.0,0.00022883,2]
[381579911,1756289452775,-480.0,0.00022883,2]
[381579912,1756289452784,-560.13,0.00022883,2]
[381579913,1756289452794,-1415.64,0.00022883,2]
[381579914,1756289452806,-480.0,0.00022883,2]
[381579915,1756289452815,-480.0,0.00022883,2]
[381579916,1756289452825,-480.0,0.00022883,2]
[381579917,1756289452835,-480.0,0.00022883,2]
[381579919,1756289452844,-630.78,0.00022883,2]
[381579921,1756289452854,-480.0,0.00022883,2]
[381579923,1756289452863,-578.01,0.00022883,2]
[381579925,1756289452872,-815.75,0.00022883,2]
[381579927,1756289452881,-743.87,0.00022883,2]
[381579929,1756289452891,-480.0,0.00022883,2]
[381579931,1756289452900,-480.0,0.00022883,2]
[381579933,1756289452910,-480.0,0.00022883,2]
[381579935,1756289452919,-1557.24,0.00022899,2]
[381579937,1756289452928,-1557.24,0.00022899,2]
[381579939,1756289452938,-1557.24,0.00022899,2]
[381579941,1756289452948,-1557.24,0.00022899,2]
[381579943,1756289452957,-1557.24,0.00022899,2]
[381579945,1756289452967,-77049.62,0.000229,7]
[381579947,1756289452976,-160.0,0.000229,7]
[381579949,1756289452986,-425.44119842,0.000229,7]
[381579951,1756289452995,-417.15472785,0.000229,7]
[381579953,1756289453007,-216.14835892,0.000229,7]
[381579955,1756289453017,-160.0,0.000229,7]
[381579957,1756289453026,-480.0,0.00022906,2]
[381579959,1756289453035,-480.0,0.00022906,2]
[381579961,1756289453045,-480.0,0.0002291,2]
[381579963,1756289453056,-731.92,0.0002291,2]
[381579965,1756289453066,-1069.75,0.0002291,2]
[381579966,1756289453080,-1626.41,0.0002291,2]
[381579968,1756289453089,-669.83,0.0002291,2]
[381579970,1756289453099,-480.0,0.0002291,2]
[381579972,1756289453109,-480.0,0.0002291,2]
[381579974,1756289453118,-679.13,0.00022912,2]
[381579976,1756289453128,-765.23,0.00022912,2]
[381579978,1756289453137,-480.0,0.00022912,2]
[381579980,1756289453146,-480.0,0.00022912,2]
[381579982,1756289453157,-1872.79,0.00022912,2]
[381579984,1756289453167,-3317.95,0.00022912,2]
[381579986,1756289453176,-572.11,0.00022912,2]
[381579988,1756289453185,-480.0,0.00022912,2]
[381579991,1756289453195,-946.94,0.00022912,2]
[381579993,1756289453205,-480.0,0.00022912,2]
[381579995,1756289453214,-589.41,0.00022912,2]
[381579997,1756289453223,-559.85,0.00022912,2]